fUST/lending_fUST_20250701
["ID","MTS","AMOUNT","RATE_DAILY","PERIOD"]
[368868808,1751379048663,-581.43,0.00023289,2]
[368868810,1751379048679,-518.15,0.0002329,2]
[368868812,1751379048688,-909.94,0.0002329,2]
[368868814,1751379048698,-1191.92,0.0002329,2]
[368868816,1751379048708,-729.6,0.0002329,2]
[368868818,1751379048720,-842.29,0.00023304,7]
[368868820,1751379048730,-500.0,0.00023363,2]
[368868822,1751379048740,-30419.73,0.000234,7]
[368868824,1751379048750,-151.0,0.000234,6]
[368868826,1751379048762,-2200.0,0.00023402,2]
[368868828,1751379048772,-842.29,0.00023404,2]
[368868830,1751379048782,-500.0,0.00023438,2]
[368868832,1751379048792,-2065.6068518,0.00023486,9]
[368868834,1751379048802,-988.42,0.000235,7]
[368868836,1751379048812,-842.29,0.00023504,6]
[368868838,1751379048821,-168.0,0.00023538,2]
[368868840,1751379048831,-707.75,0.00023561,2]
[368868842,1751379048843,-1130.8072066,0.00023561,2]
[368868844,1751379048852,-1320.11,0.00023561,2]
[368868846,1751379048862,-928.75290898,0.00023561,2]
[368868848,1751379048874,-863.72546163,0.00023561,2]
[368868850,1751379048884,-629.71,0.00023563,2]
[368868852,1751379048896,-581.47447548,0.00023563,2]
[368868854,1751379048906,-518.36578704,0.00023564,2]
[368868856,1751379048916,-910.13660982,0.00023564,2]
[368868858,1751379048926,-1192.11859432,0.00023564,2]
[368868860,1751379048936,-729.77805672,0.00023564,2]
[368868862,1751379048947,-842.29,0.00023604,5]
[368868864,1751379048956,-168.0,0.00023658,2]
[368868866,1751379048967,-168.0,0.00023683,2]
[368868868,1751379048977,-842.29,0.00023704,2]
[368868871,1751379048987,-2065.6068518,0.00023728,9]
[368868873,1751379048997,-842.29,0.00023804,2]
[368868874,1751379049007,-500.0,0.0002387,2]
[368868877,1751379049017,-500.0,0.00023872,2]
[368868878,1751379049027,-1001.24574701,0.000239,2]
[368868880,1751379049037,-842.29,0.00023904,4]
[368868882,1751379049046,-2065.6068518,0.00023969,10]
[368868885,1751379049057,-1503.71,0.00024,2]
[368868887,1751379049067,-524.61914904,0.00024,3]
[368868889,1751379049078,-160.0,0.00024,7]
[368868891,1751379049087,-837.20943635,0.00024,7]
[368868892,1751379049097,-230.32585361,0.00024,7]
[368868895,1751379049107,-215.01728679,0.00024,7]
[368868897,1751379049118,-160.0,0.00024,7]
[368868899,1751379049128,-160.0,0.00024,7]
[368868901,1751379049139,-842.29,0.00024004,3]
[368868903,1751379049150,-842.29,0.00024104,6]
[368868905,1751379049160,-2162.41236567,0.0002411,2]
[368868907,1751379049170,-223.0315306,0.0002417,2]
[368868909,1751379049180,-842.29,0.00024204,2]
[368868911,1751379049190,-600.0,0.00024207,2]
[368868913,1751379049199,-2065.6068518,0.0002421,10]
[368868914,1751379049209,-842.29,0.00024304,6]
[368868916,1751379049220,-306.0,0.00024329,2]
[368868918,1751379049230,-842.29,0.00024404,2]
[368868920,1751379049239,-2065.6068518,0.00024452,11]
[368868922,1751379049249,-842.29,0.00024504,7]
[368868924,1751379049259,-842.29,0.00024604,5]
[368868926,1751379049269,-2162.41236567,0.00024651,2]
[368868928,1751379049279,-200.0,0.00024658,15]
[368868930,1751379049289,-475.94548763,0.00024658,2]
[368868932,1751379049300,-380.0,0.00024658,2]
[368868934,1751379049310,-500.0,0.00024676,7]
[368868936,1751379049320,-2162.41236567,0.00024686,2]
[368868938,1751379049331,-2065.6068518,0.00024693,11]
[368868940,1751379049341,-3190.44,0.000247,7]
[368868942,1751379049351,-1049.92305382,0.000247,2]
[368868944,1751379049361,-842.29,0.00024704,3]
[368868946,1751379049372,-1266.708497,0.00024711,4]
[368868948,1751379049382,-500.0,0.00024738,2]
[368868950,1751379049392,-1433.89749615,0.00024748,16]
[368868952,1751379049402,-150.0,0.00024773,2]
[368868954,1751379049412,-150.0,0.00024773,2]
[368868956,1751379049422,-2000.0,0.000248,2]
[368868958,1751379049432,-2000.0,0.000248,2]
[368868960,1751379049442,-29038.0,0.000248,7]
[368868962,1751379049452,-29896.79,0.000248,2]
[368868964,1751379049461,-169.0446336,0.000248,2]
[368868966,1751379049472,-847.53272281,0.000248,7]
[368868968,1751379049482,-160.0,0.000248,7]
[368868970,1751379049492,-837.20943635,0.000248,7]
[368868972,1751379049502,-230.32585361,0.000248,7]
[368868974,1751379049512,-3361.9458198,0.000248,2]
[368868976,1751379049522,-215.01728679,0.000248,7]
[368868978,1751379049531,-842.29,0.00024804,2]
[368868980,1751379049541,-3361.94581971,0.00024827,2]
[368868982,1751379049551,-3361.94581971,0.00024854,2]
[368868984,1751379049561,-3361.94581971,0.00024881,2]
[368868986,1751379049571,-30419.73,0.000249,7]
[368868988,1751379049580,-642870.582285,0.000249,2]
[368868990,1751379049590,-842.29,0.00024904,7]
[368868992,1751379049602,-3361.94581971,0.00024908,2]
[368868994,1751379049612,-286.0,0.00024932,7]
[368868996,1751379049623,-2065.6068518,0.00024934,12]
[368868998,1751379049632,-3361.94581971,0.00024936,2]
[368869000,1751379049643,-3361.94581971,0.00024963,2]
[368869002,1751379049653,-3361.94581971,0.0002499,2]
[368869004,1751379049663,-160.0,0.00025,4]
[368869006,1751379049673,-524.61914904,0.00025,10]
[368869008,1751379049685,-160.0,0.00025,7]
[368869010,1751379049694,-286.0,0.00025,7]
[368869012,1751379049704,-842.29,0.00025004,2]
[368869014,1751379049719,-3361.94581971,0.00025017,2]
[368869016,1751379049728,-907.69915406,0.00025018,14]
[368869018,1751379049738,-169.04463359,0.00025041,2]
[368869020,1751379049747,-3361.94581971,0.00025044,2]
[368869022,1751379049757,-500.0,0.00025051,2]
[368869024,1751379049767,-168.0,0.00025066,2]
[368869026,1751379049777,-200.0,0.0002507,12]
[368869029,1751379049788,-988.42,0.000251,7]
[368869030,1751379049798,-250.0,0.000251,7]
[368869032,1751379049808,-250.0,0.000251,7]
[368869034,1751379049818,-250.0,0.000251,7]
[368869036,1751379049828,-250.0,0.000251,7]
[368869038,1751379049838,-250.0,0.000251,7]
[368869040,1751379049848,-250.0,0.000251,7]
[368869042,1751379049858,-250.0,0.000251,7]
[368869044,1751379049867,-250.0,0.000251,7]
[368869047,1751379049878,-250.0,0.000251,7]
[368869049,1751379049887,-250.0,0.000251,7]
[368869050,1751379049896,-250.0,0.000251,7]
[368869052,1751379049907,-250.0,0.000251,7]
[368869054,1751379049916,-304.0,0.000251,7]
[368869056,1751379049926,-2000.0,0.000251,2]
[368869058,1751379049936,-168.0,0.00025104,2]
[368869061,1751379049946,-842.29,0.00025104,4]
[368869062,1751379049956,-151.0,0.00025133,7]
[368869064,1751379049966,-151.0,0.00025133,7]
[368869067,1751379049976,-151.0,0.00025133,7]
[368869069,1751379049986,-297.136308,0.00025133,7]
[368869071,1751379049995,-151.0,0.00025133,7]
[368869072,1751379050005,-166.1,0.00025133,7]
[368869075,1751379050018,-151.0,0.00025133,7]
[368869077,1751379050028,-151.0,0.00025133,7]
[368869079,1751379050038,-151.0,0.00025133,7]
[368869081,1751379050049,-151.0,0.00025133,7]
[368869083,1751379050058,-151.0,0.00025133,7]
[368869085,1751379050068,-151.0,0.00025133,7]
[368869087,1751379050079,-151.0,0.00025133,7]
[368869089,1751379050089,-151.0,0.00025133,7]
[368869091,1751379050099,-151.0,0.00025133,7]
[368869093,1751379050109,-151.0,0.00025133,7]
[368869095,1751379050119,-153.703168,0.00025133,7]
[368869097,1751379050129,-151.0,0.00025133,7]
[368869099,1751379050139,-151.0,0.00025133,7]
[368869101,1751379050149,-151.0,0.00025133,7]
[368869103,1751379050159,-151.0,0.00025133,7]
[368869105,1751379050169,-151.0,0.00025133,7]
[368869107,1751379050179,-151.0,0.00025141,7]
[368869109,1751379050189,-151.0,0.00025141,7]
[368869111,1751379050199,-151.0,0.00025141,7]
[368869113,1751379050210,-151.0,0.00025141,7]
[368869115,1751379050220,-272.173186,0.00025141,7]
[368869117,1751379050230,-151.0,0.00025141,2]
[368869119,1751379050240,-151.0,0.00025141,2]
[368869121,1751379050251,-151.0,0.00025141,2]
[368869123,1751379050261,-151.0,0.00025141,2]
[368869125,1751379050271,-151.0,0.00025141,2]
[368869127,1751379050281,-151.0,0.00025141,2]
[368869129,1751379050291,-151.0,0.00025141,2]
[368869131,1751379050301,-151.0,0.00025141,2]
[368869133,1751379050311,-151.0,0.00025141,2]
[368869135,1751379050322,-151.0,0.00025141,2]
[368869137,1751379050332,-151.0,0.00025141,2]
[368869140,1751379050342,-151.0,0.00025141,2]
[368869141,1751379050352,-151.0,0.00025141,2]
[368869143,1751379050362,-151.0,0.00025141,2]
[368869145,1751379050373,-151.0,0.00025141,2]
[368869147,1751379050383,-213.17072,0.00025141,2]
[368869150,1751379050394,-168.283172,0.00025141,7]
[368869152,1751379050404,-168.283172,0.00025141,7]
[368869154,1751379050414,-168.283172,0.00025141,7]
[368869156,1751379050424,-168.283172,0.00025141,7]
[368869157,1751379050435,-168.283172,0.00025141,7]
[368869159,1751379050446,-168.283172,0.00025141,7]
[368869162,1751379050457,-168.283172,0.00025141,7]
[368869164,1751379050468,-168.283172,0.00025141,7]
[368869166,1751379050479,-168.283172,0.00025141,7]
[368869168,1751379050490,-168.283172,0.00025141,7]
[368869170,1751379050500,-168.283172,0.00025141,7]
[368869172,1751379050511,-168.283172,0.00025141,7]
[368869174,1751379050521,-168.283172,0.00025141,7]
[368869176,1751379050531,-168.283172,0.00025141,7]
[368869178,1751379050541,-168.283172,0.00025141,7]
[368869180,1751379050552,-168.283172,0.00025141,7]
[368869183,1751379050563,-168.283172,0.00025141,7]
[368869185,1751379050573,-168.283172,0.00025141,7]
[368869187,1751379050583,-168.283172,0.00025141,7]
[368869189,1751379050593,-168.283174,0.00025141,7]
[368869191,1751379050607,-151.0,0.00025141,7]
[368869193,1751379050618,-151.0,0.00025144,7]
[368869195,1751379050628,-151.0,0.00025144,7]
[368869196,1751379050638,-151.0,0.00025144,7]
[368869198,1751379050648,-151.0,0.00025144,7]
[368869200,1751379050658,-151.0,0.00025144,7]
[368869202,1751379050668,-151.0,0.00025144,7]
[368869204,1751379050679,-151.0,0.00025144,7]
[368869206,1751379050689,-151.0,0.00025144,7]
[368869208,1751379050699,-151.0,0.00025144,7]
[368869210,1751379050709,-268.561224,0.00025144,7]
[368869212,1751379050720,-151.0,0.00025144,7]
[368869215,1751379050731,-151.0,0.00025144,7]
[368869217,1751379050741,-151.0,0.00025144,7]
[368869219,1751379050751,-153.012771,0.00025144,7]
[368869221,1751379050760,-151.0,0.00025144,7]
[368869223,1751379050770,-151.0,0.00025144,7]
[368869224,1751379050780,-153.792341,0.00025144,7]
[368869225,1751379050790,-151.0,0.00025144,7]
[368869226,1751379050801,-151.0,0.00025144,7]
[368869227,1751379050811,-151.0,0.00025144,7]
[368869228,1751379050820,-151.0,0.00025144,7]
[368869230,1751379050833,-151.0,0.00025144,7]
[368869232,1751379050845,-151.0,0.00025144,7]
[368869234,1751379050856,-151.0,0.00025144,7]
[368869237,1751379050867,-151.0,0.00025144,7]
[368869239,1751379050877,-151.0,0.00025144,7]
[368869241,1751379050887,-151.0,0.00025144,7]
[368869243,1751379050897,-151.0,0.00025144,7]
[368869245,1751379050907,-151.0,0.00025144,7]
[368869247,1751379050917,-151.0,0.00025144,7]
[368869249,1751379050927,-151.0,0.00025144,7]
[368869251,1751379050936,-151.0,0.00025144,7]
[368869253,1751379050946,-151.0,0.00025144,7]
[368869255,1751379050956,-151.0,0.00025144,7]
[368869257,1751379050965,-151.0,0.00025144,7]
[368869259,1751379050977,-200.918228,0.00025144,7]
[368869261,1751379050986,-151.0,0.00025144,7]
[368869263,1751379050996,-151.0,0.00025144,7]
[368869265,1751379051006,-151.0,0.00025144,7]
[368869267,1751379051015,-151.0,0.00025144,7]
[368869269,1751379051025,-151.0,0.00025144,7]
[368869271,1751379051035,-151.0,0.00025144,7]
[368869273,1751379051044,-151.0,0.00025144,7]
[368869275,1751379051054,-151.0,0.00025144,7]
[368869277,1751379051064,-151.0,0.00025144,7]
[368869279,1751379051073,-151.0,0.00025144,7]
[368869281,1751379051083,-151.0,0.00025144,7]
[368869283,1751379051093,-153.653192,0.00025144,7]
[368869285,1751379051103,-151.0,0.00025144,7]
[368869287,1751379051112,-151.0,0.00025144,7]
[368869289,1751379051122,-151.0,0.00025144,7]
[368869291,1751379051132,-151.0,0.00025144,7]
[368869293,1751379051142,-151.0,0.00025144,7]
[368869295,1751379051152,-151.0,0.00025144,7]
[368869297,1751379051162,-151.0,0.00025144,7]
[368869299,1751379051172,-151.0,0.00025144,7]
[368869301,1751379051183,-151.0,0.00025144,7]
[368869303,1751379051192,-151.0,0.00025144,7]
[368869305,1751379051202,-257.704234,0.00025144,7]
[368869307,1751379051212,-151.750508,0.00025144,7]
[368869309,1751379051224,-300.288699,0.00025144,7]
[368869311,1751379051234,-151.0,0.00025144,7]
[368869314,1751379051245,-151.0,0.00025144,7]
[368869316,1751379051254,-264.82166,0.00025144,7]
[368869318,1751379051263,-151.0,0.00025144,7]
[368869320,1751379051273,-151.0,0.00025144,7]
[368869322,1751379051282,-151.0,0.00025144,7]
[368869324,1751379051292,-151.0,0.00025144,7]
[368869326,1751379051302,-151.0,0.00025144,7]
[368869328,1751379051311,-298.428554,0.00025144,7]
[368869330,1751379051321,-151.0,0.00025144,7]
[368869332,1751379051330,-151.0,0.00025144,7]
[368869334,1751379051340,-151.0,0.00025144,7]
[368869336,1751379051350,-151.0,0.00025144,7]
[368869338,1751379051360,-151.0,0.00025144,7]
[368869340,1751379051370,-151.0,0.00025144,7]
[368869342,1751379051380,-151.0,0.00025144,7]
[368869344,1751379051392,-151.0,0.00025144,7]
[368869346,1751379051402,-151.0,0.00025144,7]
[368869348,1751379051412,-191.18872,0.00025144,7]
[368869350,1751379051422,-5888.0,0.00025146,2]
[368869352,1751379051432,-153.0,0.00025151,2]
[368869354,1751379051442,-30468.1900286,0.00025159,2]
[368869356,1751379051453,-465.02039592,0.00025159,2]
[368869358,1751379051463,-130504.23188605,0.0002516,20]
[368869416,1751379052032,-10019.85650391,0.0002516,20]
[368869431,1751379052175,-460.0,0.00017262,2]
[368869433,1751379052185,-460.0,0.00017262,2]
[368869435,1751379052196,-460.0,0.00017262,2]
[368869437,1751379052206,-552.83231273,0.00017533,2]
[368869439,1751379052216,-460.0,0.00017536,2]
[368869441,1751379052225,-460.0,0.00017536,2]
[368869443,1751379052235,-165.03300639,0.00019341,2]
[368869445,1751379052245,-928.44233641,0.00025142,10]
[368869448,1751379052257,-1119.73766359,0.00025142,10]
[368869450,1751379052267,-8208.58734289,0.0002516,20]
[368869452,1751379052279,-8220.18212022,0.0002516,20]
[368869454,1751379052291,-304.45739246,0.0002516,20]
[368869456,1751379052303,-4683.97204548,0.0002516,20]
[368869470,1751379052430,-135.6675617,0.0002516,20]
[368869476,1751379052486,177.4536902,0.000171,2]
[368869499,1751379052695,-460.0,0.00017259,2]
[368869501,1751379052709,-359.43802307,0.00017262,2]
[368869608,1751379053743,-65.332,0.00017262,2]
[368869645,1751379054084,-35.22997693,0.00017262,2]
[368869647,1751379054094,-460.0,0.00017536,2]
[368869649,1751379054103,-12.2703347,0.0001781,2]
[368869780,1751379055512,-447.7296653,0.0001781,2]
[368869782,1751379055522,-232.03918706,0.00018084,2]
[368869784,1751379055531,-165.03300639,0.00021248,2]
[368869786,1751379055541,-1825.61129805,0.0002516,20]
[368869788,1751379055552,-1054.77820846,0.0002516,20]
[368869790,1751379055564,-10108.3143982,0.0002516,20]
[368869793,1751379055575,-353.12719254,0.0002516,20]
[368869917,1751379056827,-24032.33875692,0.0002516,20]
[368871380,1751379157227,40000.0,0.0002516,60]
[368871381,1751379185269,-165.03300639,0.00017162,2]
[368871382,1751379185293,-116.5624312,0.00017258,2]
[368871383,1751379198107,281.59543759,0.000171,2]
[368871384,1751379282581,1000.0,0.0002516,60]
[368871385,1751379305073,-190.43750841,0.00017258,2]
[368871386,1751379317461,190.43750841,0.0001833,6]
[368871387,1751379358249,16939.7032061,0.00016261,2]
[368871388,1751379358275,7960.2967939,0.00016261,2]
[368871389,1751379379886,4743.53953378,0.000171,2]
[368871390,1751379380121,-188.19818805,0.00017158,2]
[368871391,1751379396057,188.19818805,0.000171,2]
[368871392,1751379441108,356.46046622,0.000171,2]
[368871394,1751379455078,-309.87407811,0.00017158,2]
[368871395,1751379456646,-122.81760887,0.00017158,2]
[368871396,1751379456670,-115.14832301,0.00017159,2]
[368871397,1751379463383,-49.88468338,0.00017159,2]
[368871398,1751379480441,1000.0,0.00025135,120]
[368871399,1751379487416,1000.0,0.00025135,120]
[368871400,1751379494740,1000.0,0.00025135,120]
[368871401,1751379501043,514.0,0.00025135,120]
[368871403,1751379740186,-151.6650304,0.00017251,3]
[368871404,1751379742384,-159.69101139,0.00017251,3]
[368871405,1751379950469,-165.95334301,0.00017144,2]
[368871406,1751379958140,-1.7901118,0.00017144,2]
[368871415,1751380028134,-28.22395821,0.00017251,3]
[368871416,1751380028161,-169.79,0.00017251,3]
[368871417,1751380028184,-410.30467291,0.00017251,3]
[368871418,1751380051095,-99.08532709,0.00017251,3]
[368871419,1751380051120,-1200.0,0.00017254,2]
[368871420,1751380051143,-300.0,0.00017254,2]
[368871421,1751380051170,-972.0,0.00017254,2]
[368871422,1751380051193,-460.0,0.00017254,2]
[368871423,1751380051215,-607.39853005,0.00017255,2]
[368871424,1751380051240,-545.26,0.00017255,2]
[368871425,1751380051264,-460.0,0.00017255,2]
[368871426,1751380051287,-460.0,0.00017255,2]
[368871427,1751380051312,-460.0,0.00017255,2]
[368871428,1751380051338,-319.70047033,0.00017255,2]
[368871429,1751380052223,319.693407,0.00013699,2]
[368871430,1751380065542,4643.53953378,0.000171,2]
[368871431,1751380075671,1650.37381072,0.00025139,60]
[368871432,1751380083693,-151.6650304,0.00017154,2]
[368871433,1751380083719,-68.07877904,0.00017162,2]
[368871434,1751380087273,-159.71187015,0.00017162,2]
[368871435,1751380090535,-161.90600269,0.00017162,2]
[368871436,1751380094356,-161.90600264,0.00017162,2]
[368871437,1751380095872,-152.17318442,0.00017162,2]
[368871438,1751380097778,483.52387548,0.000171,2]
[368871439,1751380098035,-180.17656023,0.00017162,2]
[368871440,1751380103668,-154.85777253,0.00017162,2]
[368871441,1751380111227,-82.07197047,0.00017162,2]
[368871461,1751380163109,-152.17318442,0.00017222,2]
[368871462,1751380163132,-462.26228801,0.00017254,2]
[368871463,1751380163156,-321.99836775,0.00017254,2]
[368871464,1751380164108,-138.00163225,0.00017254,2]
[368871465,1751380164133,-159.58004648,0.00017254,2]
[368871466,1751380172996,1304.74820179,0.000171,2]
[368871467,1751380173022,3695.25179821,0.000171,2]
[368871468,1751380174110,-178.9993569,0.00017254,2]
[368871469,1751380174138,-661.42059662,0.00017254,2]
[368871470,1751380174162,-460.0,0.00017254,2]
[368871471,1751380174186,-460.0,0.00017254,2]
[368871472,1751380174215,-608.35,0.00017254,2]
[368871473,1751380174239,-451.68707343,0.00017254,2]
[368871474,1751380174264,-460.0,0.00017254,2]
[368871475,1751380174291,-460.0,0.00017254,2]
[368871476,1751380174315,-460.0,0.00017254,2]
[368871477,1751380174339,-460.0,0.00017254,2]
[368871478,1751380174361,-460.0,0.00017254,2]
[368871479,1751380174383,-508.95888261,0.00017254,2]
[368871480,1751380174410,-460.0,0.00017254,2]
[368871481,1751380174435,-910.65,0.00017254,2]
[368871482,1751380174458,-460.0,0.00017254,2]
[368871483,1751380174481,-261.70596118,0.00017255,2]
[368871492,1751380220082,-160.0,0.00017243,2]
[368871493,1751380222534,-124.91981695,0.00017243,2]
[368871494,1751380222581,-71.65110137,0.00017248,3]
[368871551,1751380232487,-98.13889863,0.00017248,3]
[368871553,1751380232497,-509.37,0.00017248,3]
[368871555,1751380232507,-460.0,0.00017254,2]
[368871557,1751380232517,-460.0,0.00017254,2]
[368871559,1751380232527,-460.0,0.00017254,2]
[368871561,1751380232536,-460.0,0.00017254,2]
[368871563,1751380232546,-460.0,0.00017254,2]
[368871565,1751380232555,-460.0,0.00017254,2]
[368871567,1751380232565,-865.0,0.00017254,2]
[368871569,1751380232574,-460.0,0.00017254,2]
[368871571,1751380232584,-460.0,0.00017254,2]
[368871573,1751380232593,-460.0,0.00017254,2]
[368871575,1751380232603,-460.0,0.00017254,2]
[368871577,1751380232612,-460.0,0.00017254,2]
[368871579,1751380232622,-460.0,0.00017254,2]
[368871581,1751380232632,-460.0,0.00017254,2]
[368871584,1751380232642,-460.0,0.00017254,2]
[368871585,1751380232652,-211.33438145,0.00017254,2]
[368871588,1751380232668,-280.91561855,0.00017254,2]
[368871590,1751380232678,-40.94299227,0.00017254,2]
[368871764,1751380235091,356.57091832,0.000171,2]
[368871792,1751380238614,-419.05700773,0.00017254,2]
[368871794,1751380238624,-460.0,0.00017254,2]
[368871796,1751380238636,-460.0,0.00017254,2]
[368871798,1751380238646,-460.0,0.00017254,2]
[368871800,1751380238655,-460.0,0.00017254,2]
[368871803,1751380238665,-460.0,0.00017254,2]
[368871805,1751380238675,-198.29403882,0.00017255,2]
[368871807,1751380238684,-460.0,0.00017255,2]
[368871809,1751380238694,-460.0,0.00017255,2]
[368871811,1751380238704,-460.0,0.00017255,2]
[368871813,1751380238714,-460.0,0.00017255,2]
[368871815,1751380238724,-460.0,0.00017255,2]
[368871817,1751380238734,-460.0,0.00017255,2]
[368871819,1751380238744,-161.39786571,0.00017255,2]
[368871821,1751380238757,-392.62213429,0.00017255,2]
[368871823,1751380238766,-383.21838934,0.00017255,2]
[368871825,1751380238778,-86.30815404,0.00017255,2]
[368871827,1751380238787,-460.0,0.00017255,2]
[368871829,1751380238797,-460.0,0.00017255,2]
[368871831,1751380238807,-460.0,0.00017255,2]
[368871833,1751380238817,-460.0,0.00017255,2]
[368871835,1751380238826,-181.7195397,0.00017255,2]
[368872352,1751380244321,-278.2804603,0.00017255,2]
[368872354,1751380244332,-461.02417692,0.00017255,2]
[368872356,1751380244343,-376.93071246,0.00017255,2]
[368872358,1751380244354,-460.0,0.00017255,2]
[368872361,1751380244365,-460.0,0.00017255,2]
[368872363,1751380244376,-460.0,0.00017255,2]
[368872365,1751380244386,-460.0,0.00017255,2]
[368872367,1751380244397,-460.0,0.00017255,2]
[368872369,1751380244408,-460.0,0.00017255,2]
[368872371,1751380244419,-460.0,0.00017255,2]
[368872373,1751380244430,-460.0,0.00017255,2]
[368872376,1751380244441,-460.0,0.00017255,2]
[368872390,1751380244676,-460.0,0.00017255,2]
[368872392,1751380244698,-460.0,0.00017255,2]
[368872394,1751380244721,-460.0,0.00017255,2]
[368872396,1751380244742,-460.0,0.00017255,2]
[368872398,1751380244764,-460.0,0.00017255,2]
[368872400,1751380244785,-197.96060783,0.00017255,2]
[368872403,1751380244821,-460.0,0.00017254,2]
[368872405,1751380244831,-302.03939217,0.00017255,2]
[368872407,1751380244841,-500.0,0.00017255,2]
[368872409,1751380244850,-365.38665058,0.00017255,2]
[368872411,1751380244860,-500.0,0.00017255,2]
[368872413,1751380244870,-500.0,0.00017255,2]
[368872415,1751380244880,-247.88674165,0.00017255,2]
[368872417,1751380244890,-500.0,0.00017255,2]
[368872419,1751380244899,-500.0,0.00017255,2]
[368872421,1751380244909,-467.55425728,0.00017255,2]
[368872423,1751380244919,-500.0,0.00017255,2]
[368872425,1751380244928,-500.0,0.00017255,2]
[368872427,1751380244938,-500.0,0.00017255,2]
[368872429,1751380244947,-500.0,0.00017255,2]
[368872431,1751380244957,-500.0,0.00017255,2]
[368872433,1751380244967,-519.55052037,0.00017255,2]
[368872435,1751380244978,-9734.61320246,0.00017255,2]
[368872437,1751380244988,-160.0,0.00017256,2]
[368872439,1751380244998,-460.0,0.00017256,2]
[368872441,1751380245008,-460.0,0.00017256,2]
[368872444,1751380245018,-460.0,0.00017256,2]
[368872445,1751380245027,-460.0,0.00017256,2]
[368872448,1751380245037,-460.0,0.00017256,2]
[368872450,1751380245047,-460.0,0.00017256,2]
[368872451,1751380245056,-460.0,0.00017256,2]
[368872453,1751380245065,-460.0,0.00017256,2]
[368872455,1751380245074,-460.0,0.00017256,2]
[368872457,1751380245084,-460.0,0.00017257,2]
[368872459,1751380245093,-460.0,0.00017257,2]
[368872461,1751380245103,-460.0,0.00017257,2]
[368872464,1751380245113,-460.0,0.00017257,2]
[368872466,1751380245123,-460.0,0.00017257,2]
[368872468,1751380245132,-460.0,0.00017257,2]
[368872470,1751380245142,-460.0,0.00017257,2]
[368872472,1751380245151,-460.0,0.00017257,2]
[368872474,1751380245160,-460.0,0.00017257,2]
[368872476,1751380245169,-460.0,0.00017257,2]
[368872478,1751380245178,-460.0,0.00017257,2]
[368872480,1751380245188,-460.0,0.00017257,2]
[368872481,1751380245198,-460.0,0.00017257,2]
[368872483,1751380245208,-460.0,0.00017257,2]
[368872486,1751380245218,-460.0,0.00017257,2]
[368872488,1751380245232,-460.0,0.00017257,2]
[368872490,1751380245241,-460.0,0.00017257,2]
[368872492,1751380245250,-460.0,0.00017257,2]
[368872494,1751380245259,-460.0,0.00017257,2]
[368872496,1751380245271,-460.0,0.00017257,2]
[368872498,1751380245280,-533.6180179,0.00017257,2]
[368872500,1751380245290,-460.0,0.00017257,2]
[368872502,1751380245299,-460.0,0.00017257,2]
[368872504,1751380245310,-460.0,0.00017257,2]
[368872506,1751380245320,-460.0,0.00017257,2]
[368872508,1751380245329,-460.0,0.00017257,2]
[368872510,1751380245340,-460.0,0.00017257,2]
[368872512,1751380245350,-460.0,0.00017257,2]